[Event "British Rapidplay Championship 2023"]
[Site "Mercure Bradford, Bankfield Hotel"]
[Date "2023.04.15"]
[Round "5.5"]
[White "Pitcher, John"]
[Black "McCarthy, Damian M"]
[Result "1-0"]
[TimeControl "15 minutes plus 10 seconds per move"]
[WhiteElo "2358"]
[BlackElo "1860"]

1. e4 {[%clk 00:15:14]} {[%emt 00:00:05]} c5 {[%clk 00:15:18]} {[%emt
00:00:03]} 2. Nf3 {[%clk 00:15:20]} {[%emt 00:00:04]} e6 {[%clk 00:15:24]}
{[%emt 00:00:04]} 3. g3 {[%clk 00:15:17]} {[%emt 00:00:13]} Nc6 {[%clk
00:15:23]} {[%emt 00:00:11]} 4. Bg2 {[%clk 00:15:22]} {[%emt 00:00:04]} d6
{[%clk 00:14:22]} {[%emt 00:01:12]} 5. O-O {[%clk 00:15:28]} {[%emt 00:00:04]}
Nge7 {[%clk 00:13:45]} {[%emt 00:00:47]} 6. d4 {[%clk 00:14:10]} {[%emt
00:01:27]} cxd4 {[%clk 00:13:53]} {[%emt 00:00:04]} 7. Nxd4 {[%clk 00:14:18]}
{[%emt 00:00:01]} Nxd4 {[%clk 00:13:50]} {[%emt 00:00:13]} 8. Qxd4 {[%clk
00:14:25]} {[%emt 00:00:03]} Nc6 {[%clk 00:13:55]} {[%emt 00:00:06]} 9. Qd3
{[%clk 00:13:02]} {[%emt 00:01:32]} Be7 {[%clk 00:13:36]} {[%emt 00:00:29]} 10.
c4 {[%clk 00:13:05]} {[%emt 00:00:07]} Qc7 {[%clk 00:13:23]} {[%emt 00:00:24]}
11. b3 {[%clk 00:12:50]} {[%emt 00:00:23]} b6 {[%clk 00:12:49]} {[%emt
00:00:45]} 12. Nc3 {[%clk 00:12:56]} {[%emt 00:00:04]} a6 {[%clk 00:12:47]}
{[%emt 00:00:13]} 13. Bb2 {[%clk 00:12:15]} {[%emt 00:00:50]} Bb7 {[%clk
00:12:12]} {[%emt 00:00:46]} 14. Rac1 {[%clk 00:12:02]} {[%emt 00:00:22]} Ne5
{[%clk 00:11:53]} {[%emt 00:00:30]} 15. Qe2 {[%clk 00:11:59]} {[%emt 00:00:11]}
O-O {[%clk 00:10:53]} {[%emt 00:01:11]} 16. f4 {[%clk 00:11:28]} {[%emt
00:00:40]} Nd7 {[%clk 00:10:10]} {[%emt 00:00:53]} 17. Kh1 {[%clk 00:11:35]}
{[%emt 00:00:03]} Rac8 {[%clk 00:09:57]} {[%emt 00:00:24]} 18. g4 {[%clk
00:09:27]} {[%emt 00:02:18]} Rfe8 {[%clk 00:09:21]} {[%emt 00:00:47]} 19. g5
{[%clk 00:09:29]} {[%emt 00:00:07]} Bf8 {[%clk 00:09:17]} {[%emt 00:00:15]} 20.
Qf2 {[%clk 00:09:05]} {[%emt 00:00:33]} Bc6 {[%clk 00:08:04]} {[%emt 00:01:23]}
21. Qh4 {[%clk 00:06:01]} {[%emt 00:03:14]} g6 {[%clk 00:07:15]} {[%emt
00:01:00]} 22. Rf3 {[%clk 00:04:20]} {[%emt 00:01:49]} Bg7 {[%clk 00:06:31]}
{[%emt 00:00:54]} 23. Rh3 {[%clk 00:04:09]} {[%emt 00:00:22]} Nf8 {[%clk
00:06:35]} {[%emt 00:00:07]} 24. Rd3 {[%clk 00:04:15]} {[%emt 00:00:03]} Nd7
{[%clk 00:06:09]} {[%emt 00:00:36]} 25. Rcd1 {[%clk 00:04:20]} {[%emt
00:00:04]} Nc5 {[%clk 00:05:49]} {[%emt 00:00:32]} 26. Rh3 {[%clk 00:04:05]}
{[%emt 00:00:23]} h5 {[%clk 00:05:46]} {[%emt 00:00:14]} 27. gxh6 {[%clk
00:04:11]} {[%emt 00:00:05]} Bh8 {[%clk 00:05:36]} {[%emt 00:00:19]} 28. h7+
{[%clk 00:03:46]} {[%emt 00:00:35]} Kf8 {[%clk 00:05:35]} {[%emt 00:00:11]} 29.
Nd5 {[%clk 00:03:17]} {[%emt 00:00:39]} exd5 {[%clk 00:05:35]} {[%emt
00:00:11]} 30. Bxh8 {[%clk 00:03:24]} {[%emt 00:00:02]} Nxe4 {[%clk 00:05:30]}
{[%emt 00:00:16]} 31. Bd4 {[%clk 00:02:58]} {[%emt 00:00:35]} 1-0

[Event "British Rapidplay Championship 2023"]
[Site "Mercure Bradford, Bankfield Hotel"]
[Date "2023.04.15"]
[Round "5.6"]
[White "Kisteneva, Liza"]
[Black "Dong, Bao Nghia"]
[Result "1/2-1/2"]
[TimeControl "15 minutes plus 10 seconds per move"]
[WhiteElo "2040"]
[BlackElo "2331"]

1. c4 {[%clk 00:15:17]} {[%emt 00:00:03]} d6 {[%clk 00:15:18]} {[%emt
00:00:02]} 2. Nc3 {[%clk 00:15:25]} {[%emt 00:00:03]} g6 {[%clk 00:15:27]} 3.
g3 {[%clk 00:15:33]} {[%emt 00:00:02]} Bg7 {[%clk 00:15:36]} 4. Bg2 {[%clk
00:15:41]} {[%emt 00:00:02]} e5 {[%clk 00:15:44]} {[%emt 00:00:02]} 5. e3
{[%clk 00:15:40]} {[%emt 00:00:10]} Ne7 {[%clk 00:15:48]} {[%emt 00:00:06]} 6.
Nge2 {[%clk 00:15:47]} {[%emt 00:00:03]} O-O {[%clk 00:15:54]} {[%emt
00:00:04]} 7. O-O {[%clk 00:15:52]} {[%emt 00:00:05]} c6 {[%clk 00:16:02]}
{[%emt 00:00:03]} 8. d4 {[%clk 00:15:51]} {[%emt 00:00:11]} Nd7 {[%clk
00:16:09]} {[%emt 00:00:03]} 9. Ne4 {[%clk 00:13:54]} {[%emt 00:02:07]} d5
{[%clk 00:15:55]} {[%emt 00:00:24]} 10. cxd5 {[%clk 00:13:48]} {[%emt
00:00:16]} cxd5 {[%clk 00:15:58]} {[%emt 00:00:07]} 11. Nd6 {[%clk 00:13:51]}
{[%emt 00:00:07]} exd4 {[%clk 00:16:07]} {[%emt 00:00:02]} 12. Nxd4 {[%clk
00:13:50]} {[%emt 00:00:11]} Ne5 {[%clk 00:16:03]} {[%emt 00:00:13]} 13. Nxc8
{[%clk 00:13:53]} {[%emt 00:00:07]} Rxc8 {[%clk 00:16:10]} {[%emt 00:00:03]} 14.
b3 {[%clk 00:13:30]} {[%emt 00:00:36]} N7c6 {[%clk 00:15:42]} {[%emt 00:00:32]}
15. Ba3 {[%clk 00:12:42]} {[%emt 00:01:00]} Re8 {[%clk 00:15:17]} {[%emt
00:00:36]} 16. Nxc6 {[%clk 00:09:18]} {[%emt 00:03:34]} Nxc6 {[%clk 00:14:06]}
{[%emt 00:01:21]} 17. Rb1 {[%clk 00:08:57]} {[%emt 00:00:30]} d4 {[%clk
00:14:07]} {[%emt 00:00:09]} 18. Bxc6 {[%clk 00:08:35]} {[%emt 00:00:32]} Rxc6
{[%clk 00:14:11]} {[%emt 00:00:05]} 19. exd4 {[%clk 00:08:44]} {[%emt
00:00:02]} Bxd4 {[%clk 00:14:17]} {[%emt 00:00:05]} 20. Bb2 {[%clk 00:08:25]}
{[%emt 00:00:28]} Rd6 {[%clk 00:14:25]} {[%emt 00:00:02]} 21. Bxd4 {[%clk
00:08:33]} {[%emt 00:00:02]} Rxd4 {[%clk 00:14:34]} 22. Qf3 {[%clk 00:08:41]}
{[%emt 00:00:02]} Ree4 {[%clk 00:11:51]} {[%emt 00:02:52]} 23. Rbd1 {[%clk
00:08:33]} {[%emt 00:00:19]} Qa5 {[%clk 00:09:32]} {[%emt 00:02:29]} 24. Rxd4
{[%clk 00:08:19]} {[%emt 00:00:24]} Rxd4 {[%clk 00:09:41]} {[%emt 00:00:02]} 25.
Qxb7 {[%clk 00:08:23]} {[%emt 00:00:05]} Kg7 {[%clk 00:08:52]} {[%emt
00:00:59]} 26. Rc1 {[%clk 00:05:58]} {[%emt 00:02:34]} Rd2 {[%clk 00:07:34]}
{[%emt 00:01:29]} 27. Qc7 {[%clk 00:04:27]} {[%emt 00:01:41]} Rd1+ {[%clk
00:06:28]} {[%emt 00:01:16]} 28. Kg2 {[%clk 00:04:36]} Qd5+ {[%clk 00:06:37]}
{[%emt 00:00:01]} 29. Kh3 {[%clk 00:04:42]} {[%emt 00:00:04]} Rd2 {[%clk
00:04:15]} {[%emt 00:02:32]} 30. Qc3+ {[%clk 00:04:09]} {[%emt 00:00:43]} Rd4
{[%clk 00:03:42]} {[%emt 00:00:44]} 31. f3 {[%clk 00:03:36]} {[%emt 00:00:42]}
f6 {[%clk 00:03:51]} {[%emt 00:00:01]} 32. Qc7+ {[%clk 00:03:44]} {[%emt
00:00:02]} Kh6 {[%clk 00:04:00]} 33. Qc5 {[%clk 00:03:05]} {[%emt 00:00:49]}
Qe6+ {[%clk 00:02:35]} {[%emt 00:01:35]} 34. g4 {[%clk 00:03:13]} {[%emt
00:00:01]} Qe3 {[%clk 00:02:42]} {[%emt 00:00:04]} 35. Rc3 {[%clk 00:02:31]}
{[%emt 00:00:53]} Qd2 {[%clk 00:02:01]} {[%emt 00:00:50]} 36. Qf8+ {[%clk
00:02:04]} {[%emt 00:00:37]} Kg5 {[%emt 00:00:06]} 37. Rc5+ {[%clk 00:02:09]}
f5 {[%clk 00:01:47]} {[%emt 00:00:33]} 38. Qe7+ {[%clk 00:02:06]} {[%emt
00:00:13]} Kf4 {[%clk 00:01:56]} {[%emt 00:00:02]} 39. Qe5+ {[%clk 00:01:52]}
{[%emt 00:00:23]} Kxf3 {[%clk 00:01:59]} {[%emt 00:00:07]} 40. Qg3+ {[%clk
00:02:00]} {[%emt 00:00:02]} Ke2 {[%clk 00:02:04]} {[%emt 00:00:03]} 41. Qg2+
{[%clk 00:02:06]} {[%emt 00:00:07]} Ke3 {[%clk 00:02:01]} {[%emt 00:00:13]} 42.
Qxd2+ {[%clk 00:02:12]} {[%emt 00:00:04]} Rxd2 {[%clk 00:02:03]} {[%emt
00:00:08]} 43. gxf5 {[%clk 00:02:20]} {[%emt 00:00:01]} gxf5 {[%clk 00:01:28]}
{[%emt 00:00:45]} 44. Rxf5 {[%clk 00:02:28]} {[%emt 00:00:03]} Rxa2 {[%clk
00:01:36]} {[%emt 00:00:01]} 45. Rf7 {[%clk 00:02:29]} {[%emt 00:00:09]} h6
{[%clk 00:01:37]} {[%emt 00:00:10]} 46. Kg4 {[%clk 00:02:12]} {[%emt 00:00:26]}
Ra5 {[%clk 00:01:13]} {[%emt 00:00:35]} 47. h4 {[%clk 00:02:15]} {[%emt
00:00:06]} h5+ {[%clk 00:01:15]} {[%emt 00:00:08]} 48. Kg3 {[%clk 00:02:20]}
{[%emt 00:00:04]} Kd4 {[%clk 00:01:23]} {[%emt 00:00:03]} 49. Rc7 {[%clk
00:02:22]} {[%emt 00:00:09]} Ra3 {[%clk 00:01:05]} {[%emt 00:00:28]} 50. Kf4
{[%clk 00:02:15]} {[%emt 00:00:16]} a5 {[%clk 00:01:14]} {[%emt 00:00:01]} 51.
Rc4+ {[%clk 00:02:19]} {[%emt 00:00:06]} Kd5 {[%clk 00:00:22]} {[%emt
00:01:02]} 52. Ra4 {[%clk 00:02:21]} {[%emt 00:00:08]} Rxb3 {[%clk 00:00:23]}
{[%emt 00:00:09]} 53. Rxa5+ {[%clk 00:02:30]} Ke6 {[%clk 00:00:33]} {[%emt
00:00:01]} 54. Rxh5 {[%clk 00:02:37]} {[%emt 00:00:03]} Kf7 {[%clk 00:00:42]}
55. Rg5 {[%clk 00:02:41]} {[%emt 00:00:06]} Rb4+ {[%clk 00:00:36]} {[%emt
00:00:16]} 56. Kg3 {[%clk 00:02:48]} {[%emt 00:00:07]} 1/2-1/2

[Event "British Rapidplay Championship 2023"]
[Site "Mercure Bradford, Bankfield Hotel"]
[Date "2023.04.15"]
[Round "5.7"]
[White "Mikalajunas, Kajus"]
[Black "Eckersley-Waites, Tom"]
[Result "0-1"]
[TimeControl "15 minutes plus 10 seconds per move"]
[WhiteElo "1778"]
[BlackElo "2304"]

1. e4 {[%clk 00:14:05]} {[%emt 00:01:14]} e5 {[%clk 00:15:17]} {[%emt
00:00:04]} 2. Nc3 {[%clk 00:14:03]} {[%emt 00:00:12]} Nc6 {[%clk 00:15:25]}
{[%emt 00:00:02]} 3. g3 {[%clk 00:14:11]} {[%emt 00:00:02]} Bc5 {[%clk
00:15:15]} {[%emt 00:00:21]} 4. Bg2 {[%clk 00:14:17]} {[%emt 00:00:04]} d6
{[%clk 00:15:22]} {[%emt 00:00:02]} 5. Na4 {[%clk 00:14:25]} {[%emt 00:00:02]}
h5 {[%clk 00:15:26]} {[%emt 00:00:06]} 6. Nxc5 {[%clk 00:14:29]} {[%emt
00:00:07]} dxc5 {[%clk 00:15:34]} {[%emt 00:00:01]} 7. Nf3 {[%clk 00:13:29]}
{[%emt 00:01:09]} h4 {[%clk 00:12:37]} {[%emt 00:03:07]} 8. Nxh4 {[%clk
00:13:05]} {[%emt 00:00:34]} Rxh4 {[%clk 00:12:46]} {[%emt 00:00:02]} 9. gxh4
{[%clk 00:13:12]} {[%emt 00:00:02]} Qxh4 {[%clk 00:12:55]} {[%emt 00:00:01]} 10.
d3 {[%clk 00:12:26]} {[%emt 00:00:57]} Bg4 {[%clk 00:12:00]} {[%emt 00:01:05]}
11. Bf3 {[%clk 00:11:45]} {[%emt 00:00:50]} Bxf3 {[%clk 00:08:09]} {[%emt
00:04:02]} 12. Qxf3 {[%clk 00:11:52]} {[%emt 00:00:03]} Nd4 {[%clk 00:08:17]}
{[%emt 00:00:02]} 13. Qd1 {[%clk 00:11:45]} {[%emt 00:00:17]} Qh3 {[%clk
00:08:03]} {[%emt 00:00:24]} 14. Be3 {[%clk 00:10:35]} {[%emt 00:01:20]} Nf3+
{[%clk 00:07:19]} {[%emt 00:00:55]} 15. Ke2 {[%clk 00:10:43]} {[%emt 00:00:02]}
c4 {[%clk 00:05:11]} {[%emt 00:02:19]} 16. Qf1 {[%clk 00:06:22]} {[%emt
00:04:29]} Qh5 {[%clk 00:04:30]} {[%emt 00:00:52]} 17. Kd1 {[%clk 00:05:58]}
{[%emt 00:00:34]} O-O-O {[%clk 00:03:18]} {[%emt 00:01:23]} 18. Kc1 {[%clk
00:06:02]} {[%emt 00:00:06]} f5 {[%clk 00:03:02]} {[%emt 00:00:27]} 19. Kb1
{[%clk 00:05:37]} {[%emt 00:00:35]} Nf6 {[%clk 00:02:01]} {[%emt 00:01:10]} 20.
exf5 {[%clk 00:04:38]} {[%emt 00:01:08]} cxd3 {[%clk 00:01:34]} {[%emt
00:00:37]} 21. cxd3 {[%clk 00:04:14]} {[%emt 00:00:34]} Qxf5 {[%clk 00:01:43]}
{[%emt 00:00:02]} 22. Kc2 {[%clk 00:03:43]} {[%emt 00:00:41]} e4 {[%clk
00:00:46]} {[%emt 00:01:07]} 23. Rd1 {[%clk 00:02:17]} {[%emt 00:01:36]} exd3+
{[%clk 00:00:46]} {[%emt 00:00:10]} 24. Kb1 {[%clk 00:02:25]} {[%emt 00:00:01]}
Qe4 {[%clk 00:00:25]} {[%emt 00:00:32]} 25. Ka1 {[%clk 00:02:07]} {[%emt
00:00:28]} b6 {[%clk 00:00:33]} {[%emt 00:00:02]} 26. Qg2 {[%clk 00:01:42]}
{[%emt 00:00:34]} Nd5 {[%clk 00:00:20]} {[%emt 00:00:24]} 27. h3 {[%clk
00:00:50]} {[%emt 00:01:02]} Nb4 {[%clk 00:00:27]} {[%emt 00:00:04]} 28. Qg4+
{[%clk 00:00:57]} {[%emt 00:00:03]} Qxg4 {[%clk 00:00:33]} {[%emt 00:00:03]} 29.
hxg4 {[%clk 00:01:06]} {[%emt 00:00:01]} Nc2+ {[%clk 00:00:24]} {[%emt
00:00:20]} 30. Kb1 {[%clk 00:01:14]} {[%emt 00:00:01]} Nxe3 {[%clk 00:00:33]}
{[%emt 00:00:01]} 31. fxe3 {[%clk 00:01:23]} {[%emt 00:00:01]} Ne5 {[%clk
00:00:43]} 32. Rhg1 {[%clk 00:01:10]} {[%emt 00:00:23]} Kd7 {[%clk 00:00:51]}
{[%emt 00:00:02]} 33. Rdf1 {[%clk 00:00:50]} {[%emt 00:00:29]} Ke6 {[%clk
00:01:00]} {[%emt 00:00:01]} 34. Rf4 {[%clk 00:00:51]} {[%emt 00:00:09]} c5
{[%clk 00:01:08]} {[%emt 00:00:02]} 35. Rd1 {[%clk 00:00:24]} {[%emt 00:00:37]}
g5 {[%clk 00:00:32]} {[%emt 00:00:46]} 36. Ra4 {[%clk 00:00:26]} {[%emt
00:00:08]} a5 {[%clk 00:00:33]} {[%emt 00:00:09]} 37. Kc1 {[%clk 00:00:26]}
{[%emt 00:00:10]} Rh8 {[%clk 00:00:32]} {[%emt 00:00:11]} 38. a3 {[%clk
00:00:19]} {[%emt 00:00:16]} Kd5 {[%clk 00:00:36]} {[%emt 00:00:06]} 39. b4
{[%clk 00:00:21]} {[%emt 00:00:08]} axb4 {[%clk 00:00:27]} {[%emt 00:00:19]} 40.
axb4 {[%clk 00:00:29]} {[%emt 00:00:02]} c4 {[%clk 00:00:36]} 41. Ra7 {[%clk
00:00:23]} {[%emt 00:00:16]} Rh2 {[%clk 00:00:35]} {[%emt 00:00:11]} 42. e4+
{[%clk 00:00:17]} {[%emt 00:00:16]} Kd4 {[%clk 00:00:44]} {[%emt 00:00:02]} 43.
Ra3 {[%clk 00:00:17]} {[%emt 00:00:10]} c3 {[%clk 00:00:45]} {[%emt 00:00:09]}
44. b5 {[%clk 00:00:20]} {[%emt 00:00:07]} Rb2 {[%clk 00:00:39]} {[%emt
00:00:16]} 45. Ra4+ {[%clk 00:00:23]} {[%emt 00:00:08]} Kc5 {[%clk 00:00:27]}
{[%emt 00:00:22]} 46. Ra3 {[%clk 00:00:27]} {[%emt 00:00:06]} d2+ {[%clk
00:00:27]} {[%emt 00:00:10]} 0-1

[Event "British Rapidplay Championship 2023"]
[Site "Mercure Bradford, Bankfield Hotel"]
[Date "2023.04.15"]
[Round "5.8"]
[White "Ismail, Mohammed Aayan"]
[Black "Pink, Joshua"]
[Result "1-0"]
[TimeControl "15 minutes plus 10 seconds per move"]
[WhiteElo "2269"]
[BlackElo "1824"]

1. Nf3 {[%clk 00:15:19]} {[%emt 00:00:06]} c5 {[%clk 00:15:11]} {[%emt
00:00:09]} 2. g3 {[%clk 00:15:28]} {[%emt 00:00:01]} g6 {[%clk 00:15:18]}
{[%emt 00:00:02]} 3. Bg2 {[%clk 00:15:37]} {[%emt 00:00:02]} Bg7 {[%clk
00:15:27]} 4. O-O {[%clk 00:15:45]} {[%emt 00:00:02]} Nf6 {[%clk 00:15:21]}
{[%emt 00:00:16]} 5. b3 {[%clk 00:15:54]} {[%emt 00:00:02]} O-O {[%clk
00:15:18]} {[%emt 00:00:11]} 6. Bb2 {[%clk 00:16:03]} {[%emt 00:00:02]} Nc6
{[%clk 00:15:24]} {[%emt 00:00:04]} 7. c4 {[%clk 00:16:04]} {[%emt 00:00:08]}
d6 {[%clk 00:15:26]} {[%emt 00:00:07]} 8. d4 {[%clk 00:15:28]} {[%emt
00:00:47]} cxd4 {[%clk 00:15:06]} {[%emt 00:00:30]} 9. Nxd4 {[%clk 00:15:36]}
{[%emt 00:00:02]} Bd7 {[%clk 00:14:59]} {[%emt 00:00:17]} 10. Nc3 {[%clk
00:15:39]} {[%emt 00:00:07]} Nxd4 {[%clk 00:14:36]} {[%emt 00:00:32]} 11. Qxd4
{[%clk 00:15:47]} {[%emt 00:00:02]} Bc6 {[%clk 00:14:44]} {[%emt 00:00:02]} 12.
Nd5 {[%clk 00:15:29]} {[%emt 00:00:28]} Ne8 {[%clk 00:13:22]} {[%emt 00:01:32]}
13. Qd2 {[%clk 00:15:37]} {[%emt 00:00:02]} Rc8 {[%clk 00:11:30]} {[%emt
00:02:01]} 14. Rad1 {[%clk 00:14:30]} {[%emt 00:01:17]} Bxb2 {[%clk 00:11:16]}
{[%emt 00:00:24]} 15. Qxb2 {[%clk 00:14:38]} {[%emt 00:00:02]} Ng7 {[%clk
00:11:24]} {[%emt 00:00:02]} 16. Qd4 {[%clk 00:12:35]} {[%emt 00:02:13]} Ne6
{[%clk 00:10:35]} {[%emt 00:01:00]} 17. Qxa7 {[%clk 00:11:43]} {[%emt
00:01:02]} Ra8 {[%clk 00:10:16]} {[%emt 00:00:28]} 18. Qe3 {[%clk 00:11:51]}
{[%emt 00:00:02]} Rxa2 {[%clk 00:10:16]} {[%emt 00:00:11]} 19. Ra1 {[%clk
00:11:15]} {[%emt 00:00:46]} Rxa1 {[%clk 00:10:14]} {[%emt 00:00:11]} 20. Rxa1
{[%clk 00:11:24]} {[%emt 00:00:02]} Qd7 {[%clk 00:09:29]} {[%emt 00:00:55]} 21.
Ra7 {[%clk 00:11:00]} {[%emt 00:00:33]} Re8 {[%clk 00:08:03]} {[%emt 00:01:36]}
22. Bh3 {[%clk 00:09:36]} {[%emt 00:01:35]} Qc8 {[%clk 00:05:51]} {[%emt
00:02:22]} 23. Nb6 {[%clk 00:07:36]} {[%emt 00:02:10]} Qb8 {[%clk 00:05:00]}
{[%emt 00:01:01]} 24. Ra8 {[%clk 00:07:20]} {[%emt 00:00:27]} Qc7 {[%clk
00:03:55]} {[%emt 00:01:15]} 25. Rxe8+ {[%clk 00:06:48]} {[%emt 00:00:42]} Bxe8
{[%clk 00:04:03]} {[%emt 00:00:02]} 26. Nd5 {[%clk 00:05:35]} {[%emt 00:01:22]}
Qc5 {[%clk 00:03:03]} {[%emt 00:01:11]} 27. Nxe7+ {[%clk 00:01:54]} {[%emt
00:03:51]} Kf8 {[%clk 00:03:11]} {[%emt 00:00:01]} 28. Nd5 {[%clk 00:02:03]}
{[%emt 00:00:02]} Qxe3 {[%clk 00:02:58]} {[%emt 00:00:23]} 29. fxe3 {[%clk
00:02:11]} {[%emt 00:00:01]} Nc5 {[%clk 00:02:06]} {[%emt 00:01:02]} 30. b4
{[%clk 00:02:13]} {[%emt 00:00:08]} Ne4 {[%clk 00:02:13]} {[%emt 00:00:02]} 31.
b5 {[%clk 00:01:36]} {[%emt 00:00:49]} f5 {[%clk 00:02:05]} {[%emt 00:00:17]}
32. Bg2 {[%clk 00:01:31]} {[%emt 00:00:16]} Nd2 {[%clk 00:02:13]} 33. Nb6
{[%clk 00:01:35]} {[%emt 00:00:07]} Bf7 {[%clk 00:02:00]} {[%emt 00:00:23]} 34.
Bxb7 {[%clk 00:01:17]} {[%emt 00:00:28]} Bxc4 {[%clk 00:01:45]} {[%emt
00:00:24]} 35. Bc6 {[%clk 00:00:43]} {[%emt 00:00:44]} Ke7 {[%clk 00:01:29]}
{[%emt 00:00:26]} 36. Nc8+ {[%clk 00:00:47]} {[%emt 00:00:06]} Kd8 {[%clk
00:01:29]} {[%emt 00:00:11]} 37. Nxd6 {[%emt 00:00:05]} Kc7 {[%clk 00:01:33]}
{[%emt 00:00:04]} 38. Nxc4 {[%clk 00:00:34]} {[%emt 00:00:29]} Nxc4 {[%clk
00:01:41]} {[%emt 00:00:02]} 39. Kf2 {[%clk 00:00:43]} {[%emt 00:00:02]} Kd6
{[%clk 00:01:36]} {[%emt 00:00:15]} 40. e4 {[%clk 00:00:33]} {[%emt 00:00:21]}
fxe4 {[%clk 00:01:32]} {[%emt 00:00:13]} 41. Bxe4 {[%clk 00:00:41]} {[%emt
00:00:02]} Ke5 {[%clk 00:01:35]} {[%emt 00:00:07]} 42. Bc6 {[%clk 00:00:26]}
{[%emt 00:00:26]} h6 {[%clk 00:01:42]} {[%emt 00:00:02]} 43. h4 {[%clk
00:00:31]} {[%emt 00:00:06]} g5 {[%clk 00:01:50]} {[%emt 00:00:02]} 44. hxg5
{[%clk 00:00:38]} {[%emt 00:00:03]} hxg5 {[%clk 00:01:58]} 45. Kf3 {[%clk
00:00:45]} {[%emt 00:00:04]} Nb6 {[%clk 00:01:52]} {[%emt 00:00:16]} 46. Kg4
{[%clk 00:00:48]} {[%emt 00:00:07]} Kf6 {[%clk 00:02:00]} {[%emt 00:00:02]} 47.
e4 {[%clk 00:00:55]} {[%emt 00:00:04]} Nc4 {[%clk 00:02:08]} 48. Bd5 {[%clk
00:00:49]} {[%emt 00:00:17]} Ne5+ {[%clk 00:02:15]} {[%emt 00:00:02]} 49. Kh5
{[%clk 00:00:57]} {[%emt 00:00:03]} Nd7 {[%clk 00:02:22]} {[%emt 00:00:03]} 50.
Bc6 {[%clk 00:00:52]} {[%emt 00:00:16]} Nb6 {[%clk 00:02:26]} {[%emt 00:00:05]}
51. Kh6 {[%clk 00:00:57]} {[%emt 00:00:06]} Nc4 {[%clk 00:02:30]} {[%emt
00:00:05]} 52. Bd5 {[%clk 00:00:52]} {[%emt 00:00:15]} Nb6 {[%clk 00:02:37]}
{[%emt 00:00:03]} 53. Ba2 {[%clk 00:00:27]} {[%emt 00:00:36]} Nd7 {[%clk
00:02:42]} {[%emt 00:00:05]} 54. Bb3 {[%clk 00:00:30]} {[%emt 00:00:06]} Nb6
{[%clk 00:02:49]} {[%emt 00:00:02]} 55. e5+ {[%clk 00:00:28]} {[%emt 00:00:13]}
Kxe5 {[%clk 00:02:57]} {[%emt 00:00:02]} 56. Kxg5 {[%clk 00:00:36]} {[%emt
00:00:02]} Nd7 {[%clk 00:02:56]} {[%emt 00:00:10]} 57. g4 {[%clk 00:00:41]}
{[%emt 00:00:06]} Nb6 {[%clk 00:02:40]} {[%emt 00:00:27]} 58. Kh6 {[%clk
00:00:47]} {[%emt 00:00:05]} Nd7 {[%clk 00:02:45]} {[%emt 00:00:04]} 59. g5
{[%clk 00:00:54]} {[%emt 00:00:04]} Kd4 {[%clk 00:02:39]} {[%emt 00:00:16]} 60.
g6 {[%clk 00:00:31]} {[%emt 00:00:32]} Kc5 {[%clk 00:02:39]} {[%emt 00:00:09]}
61. g7 {[%clk 00:00:39]} {[%emt 00:00:03]} Nf6 {[%clk 00:02:46]} {[%emt
00:00:02]} 62. Kg6 {[%clk 00:00:48]} {[%emt 00:00:02]} 1-0